[Event "*** Titled Tuesday Blitz"]
[Site "Chess.com"]
[Date "2021.02.02"]
[Round "3"]
[White "WonderChampion"]
[Black "gumimis"]
[Result "0-1"]
[WhiteElo "2062"]
[BlackElo "2326"]
[TimeControl "180+1"]
[EndTime "10:30:56 PST"]
[Termination "gumimis won by checkmate"]

1. d4 {[%clk 0:03:00.9]} 1... Nf6 {[%clk 0:02:58.6]} 2. Bg5 {[%clk 0:02:57.2]}
2... g6 {[%clk 0:02:55.7]} 3. Bxf6 {[%clk 0:02:51]} 3... exf6 {[%clk 0:02:56.6]}
4. e3 {[%clk 0:02:50]} 4... Bg7 {[%clk 0:02:55.5]} 5. c4 {[%clk 0:02:47.2]} 5...
f5 {[%clk 0:02:54.4]} 6. Nc3 {[%clk 0:02:45.1]} 6... d6 {[%clk 0:02:49.8]} 7.
Nf3 {[%clk 0:02:42.9]} 7... O-O {[%clk 0:02:40.9]} 8. Bd3 {[%clk 0:02:41.6]}
8... c5 {[%clk 0:02:39.2]} 9. d5 {[%clk 0:02:39.8]} 9... Nd7 {[%clk 0:02:37.8]}
10. O-O {[%clk 0:02:36.3]} 10... Re8 {[%clk 0:02:27.5]} 11. Qc2 {[%clk
0:02:33.9]} 11... Ne5 {[%clk 0:02:22.2]} 12. Nxe5 {[%clk 0:02:31]} 12... Bxe5
{[%clk 0:02:21.8]} 13. e4 {[%clk 0:02:27.2]} 13... fxe4 {[%clk 0:02:04.4]} 14.
Nxe4 {[%clk 0:02:24.7]} 14... Bf5 {[%clk 0:02:03.5]} 15. Rfe1 {[%clk 0:02:19]}
15... Qh4 {[%clk 0:01:49.6]} 16. Ng3 {[%clk 0:02:11.6]} 16... Bxd3 {[%clk
0:01:42.1]} 17. Qxd3 {[%clk 0:02:08.7]} 17... Bxb2 {[%clk 0:01:36]} 18. Rab1
{[%clk 0:02:07.3]} 18... Bd4 {[%clk 0:01:31.9]} 19. Ne4 {[%clk 0:01:56.1]} 19...
Re5 {[%clk 0:01:01.7]} 20. g3 {[%clk 0:01:50.8]} 20... Qe7 {[%clk 0:00:59.4]}
21. Re2 {[%clk 0:01:02.7]} 21... Re8 {[%clk 0:00:54.7]} 22. Rbe1 {[%clk
0:01:00.4]} 22... f5 {[%clk 0:00:48.6]} 23. Nxd6 {[%clk 0:00:54.7]} 23... Rxe2
{[%clk 0:00:40.3]} 24. Rxe2 {[%clk 0:00:55.6]} 24... Qxe2 {[%clk 0:00:40.2]} 25.
Qxe2 {[%clk 0:00:52.6]} 25... Rxe2 {[%clk 0:00:41.1]} 26. Nxb7 {[%clk
0:00:50.2]} 26... Rxf2 {[%clk 0:00:38]} 27. Kh1 {[%clk 0:00:47.2]} 27... Rb2
{[%clk 0:00:34.1]} 28. Nd6 {[%clk 0:00:38.7]} 28... Rxa2 {[%clk 0:00:27.1]} 29.
Nb5 {[%clk 0:00:37]} 29... a6 {[%clk 0:00:22.1]} 30. Nxd4 {[%clk 0:00:31.8]}
30... cxd4 {[%clk 0:00:22.1]} 31. d6 {[%clk 0:00:30.9]} 31... Kf7 {[%clk
0:00:21.5]} 32. c5 {[%clk 0:00:30.6]} 32... d3 {[%clk 0:00:18]} 33. c6 {[%clk
0:00:30.1]} 33... d2 {[%clk 0:00:17.5]} 34. c7 {[%clk 0:00:30.3]} 34... d1=Q#
{[%clk 0:00:17.1]} 0-1

[Event "*** Titled Tuesday Blitz"]
[Site "Chess.com"]
[Date "2021.02.02"]
[Round "3"]
[White "CalinGheorghiu"]
[Black "chessablanca"]
[Result "0-1"]
[WhiteElo "2242"]
[BlackElo "2497"]
[TimeControl "180+1"]
[EndTime "10:30:57 PST"]
[Termination "chessablanca won by resignation"]

1. e4 {[%clk 0:03:00.9]} 1... e5 {[%clk 0:02:59.8]} 2. Nf3 {[%clk 0:03:00.1]}
2... Nc6 {[%clk 0:03:00.1]} 3. Bb5 {[%clk 0:02:58.9]} 3... a6 {[%clk 0:02:59.7]}
4. Ba4 {[%clk 0:02:58.5]} 4... Nf6 {[%clk 0:02:59.8]} 5. d3 {[%clk 0:02:58.1]}
5... b5 {[%clk 0:02:59]} 6. Bb3 {[%clk 0:02:57.5]} 6... Be7 {[%clk 0:02:58.9]}
7. O-O {[%clk 0:02:56.5]} 7... O-O {[%clk 0:02:57.9]} 8. c3 {[%clk 0:02:55.8]}
8... d6 {[%clk 0:02:57.6]} 9. Re1 {[%clk 0:02:55.1]} 9... Na5 {[%clk 0:02:56.6]}
10. Bc2 {[%clk 0:02:55.2]} 10... c5 {[%clk 0:02:56.3]} 11. Nbd2 {[%clk
0:02:56.1]} 11... Nc6 {[%clk 0:02:53.9]} 12. Nf1 {[%clk 0:02:56.5]} 12... Re8
{[%clk 0:02:53]} 13. Ng3 {[%clk 0:02:56.5]} 13... Bf8 {[%clk 0:02:52.9]} 14. h3
{[%clk 0:02:48.9]} 14... g6 {[%clk 0:02:52.1]} 15. a4 {[%clk 0:02:42.8]} 15...
Rb8 {[%clk 0:02:49.9]} 16. axb5 {[%clk 0:02:38.6]} 16... axb5 {[%clk 0:02:50.8]}
17. d4 {[%clk 0:02:38.9]} 17... Bg7 {[%clk 0:02:44.7]} 18. d5 {[%clk 0:02:09.4]}
18... Ne7 {[%clk 0:02:39.3]} 19. b4 {[%clk 0:02:04.4]} 19... c4 {[%clk
0:02:17.4]} 20. Be3 {[%clk 0:01:43.1]} 20... Bd7 {[%clk 0:02:04.8]} 21. Ra5
{[%clk 0:01:25.2]} 21... Kh8 {[%clk 0:01:50.4]} 22. Qd2 {[%clk 0:00:39.1]} 22...
Nfg8 {[%clk 0:01:47.3]} 23. Ng5 {[%clk 0:00:34.2]} 23... Rf8 {[%clk 0:01:45.9]}
24. f4 {[%clk 0:00:29.2]} 24... f5 {[%clk 0:01:18.6]} 25. exf5 {[%clk
0:00:19.9]} 25... Nxf5 {[%clk 0:00:56.8]} 26. Nxf5 {[%clk 0:00:19.3]} 26... gxf5
{[%clk 0:00:56.6]} 27. Ne6 {[%clk 0:00:15.7]} 27... Bxe6 {[%clk 0:00:51.2]} 28.
dxe6 {[%clk 0:00:16.6]} 28... Qe7 {[%clk 0:00:47.8]} 29. Ra6 {[%clk 0:00:11.3]}
29... Rbd8 {[%clk 0:00:46.6]} 30. Rd1 {[%clk 0:00:11.5]} 30... Qxe6 {[%clk
0:00:42.8]} 31. Rxd6 {[%clk 0:00:11.7]} 31... Rxd6 {[%clk 0:00:36.6]} 32. Qxd6
{[%clk 0:00:12.6]} 32... Qxd6 {[%clk 0:00:37.1]} 33. Rxd6 {[%clk 0:00:13.5]}
33... exf4 {[%clk 0:00:37.6]} 34. Bxf4 {[%clk 0:00:13.7]} 34... Bxc3 {[%clk
0:00:38.1]} 35. Rb6 {[%clk 0:00:12.1]} 35... Bd4+ {[%clk 0:00:38.1]} 36. Kf1
{[%clk 0:00:11]} 36... Bxb6 {[%clk 0:00:38.6]} 37. Be5+ {[%clk 0:00:09.7]} 37...
Nf6 {[%clk 0:00:39.1]} 38. Bxf5 {[%clk 0:00:08.4]} 38... Kg8 {[%clk 0:00:39.2]}
39. Be6+ {[%clk 0:00:08.5]} 39... Kg7 {[%clk 0:00:39.6]} 40. g4 {[%clk 0:00:09]}
40... Re8 {[%clk 0:00:34.9]} 0-1

[Event "*** Titled Tuesday Blitz"]
[Site "Chess.com"]
[Date "2021.02.02"]
[Round "3"]
[White "Natalya_Buksa"]
[Black "Matensien"]
[Result "1-0"]
[WhiteElo "2572"]
[BlackElo "2379"]
[TimeControl "180+1"]
[EndTime "10:30:59 PST"]
[Termination "Natalya_Buksa won by resignation"]

1. d4 {[%clk 0:03:00.9]} 1... Nf6 {[%clk 0:02:57.2]} 2. Nc3 {[%clk 0:03:01.2]}
2... d5 {[%clk 0:02:56.3]} 3. Bf4 {[%clk 0:03:01.6]} 3... Bf5 {[%clk 0:02:53.7]}
4. e3 {[%clk 0:03:01.7]} 4... e6 {[%clk 0:02:47.5]} 5. Nf3 {[%clk 0:03:01.9]}
5... Bd6 {[%clk 0:02:43.3]} 6. Ne5 {[%clk 0:03:01.8]} 6... O-O {[%clk
0:02:33.6]} 7. g4 {[%clk 0:03:01.4]} 7... Bg6 {[%clk 0:02:14]} 8. h4 {[%clk
0:03:00]} 8... h5 {[%clk 0:02:09]} 9. g5 {[%clk 0:02:52]} 9... Ne4 {[%clk
0:02:04]} 10. Nxe4 {[%clk 0:02:43.6]} 10... dxe4 {[%clk 0:01:59.3]} 11. Nxg6
{[%clk 0:02:41.8]} 11... fxg6 {[%clk 0:01:58]} 12. Bxd6 {[%clk 0:02:42.3]} 12...
cxd6 {[%clk 0:01:57]} 13. Qd2 {[%clk 0:02:42.3]} 13... d5 {[%clk 0:01:49.7]} 14.
O-O-O {[%clk 0:02:41.8]} 14... Nc6 {[%clk 0:01:48.5]} 15. Kb1 {[%clk 0:02:41.9]}
15... Rc8 {[%clk 0:01:47.9]} 16. a3 {[%clk 0:02:40.5]} 16... Qa5 {[%clk
0:01:46.9]} 17. Bh3 {[%clk 0:02:37.5]} 17... Kf7 {[%clk 0:01:40.7]} 18. Qe2
{[%clk 0:02:34.4]} 18... Ke7 {[%clk 0:01:37]} 19. Rhf1 {[%clk 0:02:32.7]} 19...
a6 {[%clk 0:01:29.4]} 20. f3 {[%clk 0:02:31.9]} 20... exf3 {[%clk 0:01:30]} 21.
Rxf3 {[%clk 0:02:32.2]} 21... Qb5 {[%clk 0:01:30.6]} 22. Qxb5 {[%clk 0:02:14.6]}
22... axb5 {[%clk 0:01:29.9]} 23. Rdf1 {[%clk 0:02:15.5]} 23... Rxf3 {[%clk
0:01:26.5]} 24. Rxf3 {[%clk 0:02:16.4]} 24... b4 {[%clk 0:01:24.6]} 25. a4
{[%clk 0:02:11.2]} 25... Nd8 {[%clk 0:01:18.2]} 26. Bf1 {[%clk 0:02:08.1]} 26...
Nf7 {[%clk 0:01:16.9]} 27. Bd3 {[%clk 0:02:07.7]} 27... Nh8 {[%clk 0:01:00.4]}
28. Kc1 {[%clk 0:02:02]} 28... Rf8 {[%clk 0:00:59.4]} 29. Rxf8 {[%clk
0:02:00.4]} 29... Kxf8 {[%clk 0:01:00.3]} 30. c3 {[%clk 0:02:00.7]} 30... bxc3
{[%clk 0:00:59.2]} 31. bxc3 {[%clk 0:02:00.5]} 31... Ke7 {[%clk 0:00:57.9]} 32.
Kb2 {[%clk 0:02:00.5]} 32... Kd6 {[%clk 0:00:58.3]} 33. Kb3 {[%clk 0:02:00.7]}
33... e5 {[%clk 0:00:58.7]} 34. dxe5+ {[%clk 0:02:00.3]} 34... Kxe5 {[%clk
0:00:59]} 35. Kb4 {[%clk 0:02:00.9]} 35... Nf7 {[%clk 0:00:43.4]} 36. Kb5 {[%clk
0:01:52.1]} 36... Nd6+ {[%clk 0:00:11.5]} 37. Kb6 {[%clk 0:01:51.7]} 37... Ke6
{[%clk 0:00:08.3]} 38. Bxg6 {[%clk 0:01:49.5]} 38... Ke5 {[%clk 0:00:08.6]} 39.
Bd3 {[%clk 0:01:45.5]} 39... Ke6 {[%clk 0:00:07.3]} 40. a5 {[%clk 0:01:46]}
40... Kd7 {[%clk 0:00:06.6]} 41. Be2 {[%clk 0:01:43]} 41... Kc8 {[%clk
0:00:05.2]} 42. Bd3 {[%clk 0:01:37.2]} 42... Kb8 {[%clk 0:00:04.2]} 43. Kc5
{[%clk 0:01:37.6]} 43... Kc7 {[%clk 0:00:02.1]} 44. Kxd5 {[%clk 0:01:37.5]}
44... Ne8 {[%clk 0:00:01.5]} 45. e4 {[%clk 0:01:37.1]} 45... Nd6 {[%clk
0:00:01.6]} 46. e5 {[%clk 0:01:37]} 46... Nc8 {[%clk 0:00:02.3]} 47. Be2 {[%clk
0:01:32.9]} 47... Ne7+ {[%clk 0:00:02.6]} 48. Ke6 {[%clk 0:01:31.6]} 48... Nc6
{[%clk 0:00:03.5]} 49. Bxh5 {[%clk 0:01:31.4]} 49... Nxa5 {[%clk 0:00:01.9]} 50.
Kf7 {[%clk 0:01:31]} 50... Nc6 {[%clk 0:00:02.2]} 51. e6 {[%clk 0:01:31.5]}
51... Kd6 {[%clk 0:00:01.9]} 52. Bg4 {[%clk 0:01:32]} 52... b5 {[%clk 0:00:02]}
53. h5 {[%clk 0:01:31.7]} 53... Ne7 {[%clk 0:00:02.3]} 54. h6 {[%clk 0:01:31.5]}
54... gxh6 {[%clk 0:00:02.4]} 55. gxh6 {[%clk 0:01:32.4]} 55... Nd5 {[%clk
0:00:02]} 56. h7 {[%clk 0:01:32.1]} 1-0

[Event "*** Titled Tuesday Blitz"]
[Site "Chess.com"]
[Date "2021.02.02"]
[Round "3"]
[White "ehrenfeld"]
[Black "JoachimMouhamad"]
[Result "1-0"]
[WhiteElo "2518"]
[BlackElo "2312"]
[TimeControl "180+1"]
[EndTime "10:30:59 PST"]
[Termination "ehrenfeld won on time"]

1. e4 {[%clk 0:03:00.9]} 1... e5 {[%clk 0:02:59.5]} 2. Nc3 {[%clk 0:02:59.9]}
2... Nf6 {[%clk 0:02:59.2]} 3. f4 {[%clk 0:02:59.6]} 3... d5 {[%clk 0:02:59.1]}
4. fxe5 {[%clk 0:02:59.5]} 4... Nxe4 {[%clk 0:02:58.9]} 5. Qf3 {[%clk
0:02:59.7]} 5... Nxc3 {[%clk 0:02:58.4]} 6. bxc3 {[%clk 0:02:59.9]} 6... Be7
{[%clk 0:02:53.7]} 7. d4 {[%clk 0:02:59.5]} 7... Be6 {[%clk 0:02:46.9]} 8. Bd3
{[%clk 0:02:58.8]} 8... c5 {[%clk 0:02:33.7]} 9. Ne2 {[%clk 0:02:58.1]} 9... g5
{[%clk 0:02:25.5]} 10. O-O {[%clk 0:02:54.9]} 10... Nc6 {[%clk 0:02:19.9]} 11.
Qh5 {[%clk 0:02:44.8]} 11... Qd7 {[%clk 0:02:10.6]} 12. Bxg5 {[%clk 0:02:29.4]}
12... c4 {[%clk 0:02:07.9]} 13. Bxe7 {[%clk 0:01:52.7]} 13... cxd3 {[%clk
0:01:49.6]} 14. Nf4 {[%clk 0:01:10.3]} 14... Nxe7 {[%clk 0:01:43.3]} 15. Nxe6
{[%clk 0:01:08.5]} 15... Qxe6 {[%clk 0:01:04]} 16. Rf6 {[%clk 0:01:08]} 16...
Qc8 {[%clk 0:00:52.4]} 17. Qxf7+ {[%clk 0:01:06.3]} 17... Kd8 {[%clk 0:00:52.3]}
18. Rd6+ {[%clk 0:01:04.7]} 18... Kc7 {[%clk 0:00:50.4]} 19. Qxe7+ {[%clk
0:01:03.3]} 19... Kb8 {[%clk 0:00:50.8]} 20. Rd7 {[%clk 0:00:45.3]} 20... a6
{[%clk 0:00:47]} 21. Rb1 {[%clk 0:00:42.1]} 21... Ra7 {[%clk 0:00:45.4]} 22.
cxd3 {[%clk 0:00:38.8]} 22... Ka8 {[%clk 0:00:43.8]} 23. c4 {[%clk 0:00:31.9]}
23... dxc4 {[%clk 0:00:42.4]} 24. dxc4 {[%clk 0:00:31.6]} 24... Re8 {[%clk
0:00:29.4]} 25. Qd6 {[%clk 0:00:30.9]} 25... Rg8 {[%clk 0:00:16.4]} 26. Qd5
{[%clk 0:00:27.3]} 26... Re8 {[%clk 0:00:04.3]} 27. c5 {[%clk 0:00:26.9]} 27...
Kb8 {[%clk 0:00:03.1]} 28. e6 {[%clk 0:00:24.7]} 28... b5 {[%clk 0:00:01.6]} 29.
c6 {[%clk 0:00:18.3]} 29... Rc7 {[%clk 0:00:01.7]} 30. Qd6 {[%clk 0:00:17.7]}
1-0

[Event "*** Titled Tuesday Blitz"]
[Site "Chess.com"]
[Date "2021.02.02"]
[Round "3"]
[White "MarceloPlaya"]
[Black "OMGCovid-19"]
[Result "1-0"]
[WhiteElo "2293"]
[BlackElo "1964"]
[TimeControl "180+1"]
[EndTime "10:30:59 PST"]
[Termination "MarceloPlaya won by checkmate"]

1. e4 {[%clk 0:03:00.9]} 1... e6 {[%clk 0:03:00.3]} 2. d4 {[%clk 0:03:00.1]}
2... d5 {[%clk 0:03:00.7]} 3. Nc3 {[%clk 0:02:59.7]} 3... Bb4 {[%clk 0:02:59.9]}
4. e5 {[%clk 0:02:59]} 4... c5 {[%clk 0:03:00.5]} 5. a3 {[%clk 0:02:57]} 5...
Bxc3+ {[%clk 0:03:01]} 6. bxc3 {[%clk 0:02:56.5]} 6... Qc7 {[%clk 0:03:01.6]} 7.
Qg4 {[%clk 0:02:55.5]} 7... f5 {[%clk 0:03:00.9]} 8. exf6 {[%clk 0:02:52.7]}
8... Nxf6 {[%clk 0:02:59.9]} 9. Qg3 {[%clk 0:02:49.4]} 9... Qxg3 {[%clk
0:02:59.7]} 10. hxg3 {[%clk 0:02:48.5]} 10... Nc6 {[%clk 0:03:00.2]} 11. Nf3
{[%clk 0:02:46.9]} 11... Bd7 {[%clk 0:02:54.4]} 12. Bf4 {[%clk 0:02:36.5]} 12...
Ne4 {[%clk 0:02:47]} 13. dxc5 {[%clk 0:02:22.4]} 13... Nxc3 {[%clk 0:01:52.1]}
14. Bd3 {[%clk 0:02:19.3]} 14... O-O-O {[%clk 0:01:48]} 15. Ne5 {[%clk
0:01:57.1]} 15... Be8 {[%clk 0:01:03.2]} 16. Nxc6 {[%clk 0:01:48.4]} 16... Bxc6
{[%clk 0:00:57.7]} 17. Be5 {[%clk 0:01:40.1]} 17... d4 {[%clk 0:00:55.1]} 18.
Bxg7 {[%clk 0:01:34.2]} 18... Rhg8 {[%clk 0:00:54.9]} 19. Bf6 {[%clk 0:01:29.5]}
19... Rd7 {[%clk 0:00:44.1]} 20. Rxh7 {[%clk 0:01:22.6]} 20... Bxg2 {[%clk
0:00:37.9]} 21. Rxd7 {[%clk 0:01:19.7]} 21... Kxd7 {[%clk 0:00:37.4]} 22. Bxd4
{[%clk 0:01:19.4]} 22... Nd5 {[%clk 0:00:35.9]} 23. O-O-O {[%clk 0:01:16.1]}
23... Bf3 {[%clk 0:00:33.3]} 24. Bb5+ {[%clk 0:01:13.7]} 24... Kc8 {[%clk
0:00:28.4]} 25. Rd2 {[%clk 0:01:10.9]} 25... Be4 {[%clk 0:00:17.7]} 26. Be5
{[%clk 0:01:07.2]} 26... Bf5 {[%clk 0:00:16]} 27. c4 {[%clk 0:01:04]} 27... Nc7
{[%clk 0:00:13.2]} 28. Bd7+ {[%clk 0:00:51.5]} 28... Kb8 {[%clk 0:00:11.1]} 29.
c6 {[%clk 0:00:51.5]} 29... b6 {[%clk 0:00:10.1]} 30. f3 {[%clk 0:00:45.5]}
30... Bg6 {[%clk 0:00:02.3]} 31. Bxe6 {[%clk 0:00:39.8]} 31... Re8 {[%clk
0:00:02.3]} 32. f4 {[%clk 0:00:30.5]} 32... Rxe6 {[%clk 0:00:01.2]} 33. Rd8#
{[%clk 0:00:29.1]} 1-0

[Event "*** Titled Tuesday Blitz"]
[Site "Chess.com"]
[Date "2021.02.02"]
[Round "3"]
[White "novocane"]
[Black "andriipalchuk"]
[Result "0-1"]
[WhiteElo "2274"]
[BlackElo "2601"]
[TimeControl "180+1"]
[EndTime "10:31:02 PST"]
[Termination "andriipalchuk won by resignation"]

1. d4 {[%clk 0:02:59.5]} 1... d5 {[%clk 0:02:58.9]} 2. c4 {[%clk 0:02:59.6]}
2... e6 {[%clk 0:02:58.2]} 3. Nc3 {[%clk 0:02:59.9]} 3... c6 {[%clk 0:02:58.8]}
4. e4 {[%clk 0:03:00]} 4... dxe4 {[%clk 0:02:57.2]} 5. Nxe4 {[%clk 0:03:00.9]}
5... Bb4+ {[%clk 0:02:57.8]} 6. Bd2 {[%clk 0:03:00.8]} 6... Qxd4 {[%clk
0:02:58.4]} 7. Bxb4 {[%clk 0:03:01.4]} 7... Qxe4+ {[%clk 0:02:58]} 8. Be2 {[%clk
0:03:01.9]} 8... Na6 {[%clk 0:02:58.5]} 9. Bc3 {[%clk 0:03:01.9]} 9... Qxg2
{[%clk 0:02:50.5]} 10. Bf3 {[%clk 0:03:00.4]} 10... Qg6 {[%clk 0:02:49.2]} 11.
Ne2 {[%clk 0:03:00.2]} 11... e5 {[%clk 0:02:41.8]} 12. Ng3 {[%clk 0:02:32.1]}
12... Be6 {[%clk 0:02:18.3]} 13. Bxe5 {[%clk 0:02:16.5]} 13... Rd8 {[%clk
0:01:55.6]} 14. Qe2 {[%clk 0:02:11.1]} 14... Qd3 {[%clk 0:01:55.5]} 15. Bxg7
{[%clk 0:01:55.7]} 15... Qxe2+ {[%clk 0:01:53.1]} 16. Bxe2 {[%clk 0:01:52.4]}
16... Nb4 {[%clk 0:01:53.4]} 17. O-O {[%clk 0:01:47.8]} 17... f6 {[%clk
0:01:50.8]} 18. Bxh8 {[%clk 0:01:47.7]} 18... Ke7 {[%clk 0:01:50.3]} 19. a3
{[%clk 0:01:35.5]} 19... Nc2 {[%clk 0:01:48.1]} 20. Rac1 {[%clk 0:01:35.3]}
20... Nd4 {[%clk 0:01:49]} 21. Rfe1 {[%clk 0:01:32.9]} 21... Nh6 {[%clk
0:01:47.5]} 22. Bg7 {[%clk 0:01:22]} 22... Nf7 {[%clk 0:01:43.9]} 23. Bg4 {[%clk
0:01:08.1]} 23... Ne5 {[%clk 0:01:41]} 24. Bxe6 {[%clk 0:00:50.2]} 24... Nxe6
{[%clk 0:01:40.8]} 25. Nf5+ {[%clk 0:00:40]} 25... Kf7 {[%clk 0:01:39.4]} 26.
Rxe5 {[%clk 0:00:33.6]} 26... fxe5 {[%clk 0:01:34.7]} 27. Bxe5 {[%clk
0:00:32.2]} 27... Ng5 {[%clk 0:01:29]} 28. f4 {[%clk 0:00:28.3]} 28... Ne4
{[%clk 0:01:23.9]} 29. Re1 {[%clk 0:00:22.5]} 29... Nd2 {[%clk 0:01:23.7]} 30.
Kf2 {[%clk 0:00:17.6]} 30... Nxc4 {[%clk 0:01:23.3]} 31. Re2 {[%clk 0:00:16.7]}
31... Rd7 {[%clk 0:01:14.5]} 32. Ne3 {[%clk 0:00:15.1]} 32... Nb6 {[%clk
0:01:08.7]} 33. Nc2 {[%clk 0:00:14.8]} 33... Nd5 {[%clk 0:01:07.8]} 34. Kf3
{[%clk 0:00:14.5]} 34... Ne7 {[%clk 0:01:06.3]} 35. Ne3 {[%clk 0:00:14.7]} 35...
Rd3 {[%clk 0:00:59.8]} 36. Kf2 {[%clk 0:00:14.9]} 36... Ng6 {[%clk 0:00:58.2]}
37. Ke1 {[%clk 0:00:14.6]} 37... Nh4 {[%clk 0:00:57.4]} 38. Nf5 {[%clk
0:00:13.4]} 38... Nxf5 {[%clk 0:00:57]} 39. Rc2 {[%clk 0:00:13.4]} 39... Ke6
{[%clk 0:00:54.4]} 40. Re2 {[%clk 0:00:13.2]} 40... Kf7 {[%clk 0:00:53]} 41. Bc3
{[%clk 0:00:12.4]} 41... Nh4 {[%clk 0:00:47.8]} 42. Rg2 {[%clk 0:00:11.5]} 42...
Nxg2+ {[%clk 0:00:47.5]} 0-1

[Event "*** Titled Tuesday Blitz"]
[Site "Chess.com"]
[Date "2021.02.02"]
[Round "3"]
[White "Chopper1905"]
[Black "Alexchess1984"]
[Result "1/2-1/2"]
[WhiteElo "2921"]
[BlackElo "2683"]
[TimeControl "180+1"]
[EndTime "10:31:04 PST"]
[Termination "Game drawn by repetition"]

1. d4 {[%clk 0:03:00.9]} 1... Nf6 {[%clk 0:02:59.3]} 2. c4 {[%clk 0:03:00.8]}
2... c5 {[%clk 0:02:59.1]} 3. d5 {[%clk 0:03:01]} 3... b5 {[%clk 0:02:59.5]} 4.
cxb5 {[%clk 0:03:01.9]} 4... a6 {[%clk 0:02:59.7]} 5. bxa6 {[%clk 0:03:02.8]}
5... Bxa6 {[%clk 0:03:00.1]} 6. Nc3 {[%clk 0:03:03.5]} 6... g6 {[%clk
0:02:59.7]} 7. e4 {[%clk 0:03:03.5]} 7... Bxf1 {[%clk 0:02:59.5]} 8. Kxf1 {[%clk
0:03:04.1]} 8... d6 {[%clk 0:02:59.8]} 9. g3 {[%clk 0:03:04.6]} 9... Bg7 {[%clk
0:02:59.1]} 10. Kg2 {[%clk 0:03:05.2]} 10... O-O {[%clk 0:02:59.5]} 11. Nf3
{[%clk 0:03:05.8]} 11... Qb6 {[%clk 0:02:59.9]} 12. a4 {[%clk 0:02:57.5]} 12...
Na6 {[%clk 0:02:59.9]} 13. Qe2 {[%clk 0:02:53.2]} 13... Nc7 {[%clk 0:02:56.8]}
14. Bg5 {[%clk 0:02:41.5]} 14... Rfb8 {[%clk 0:02:55]} 15. Rhb1 {[%clk
0:02:39.4]} 15... h6 {[%clk 0:02:46.7]} 16. Bd2 {[%clk 0:02:28.2]} 16... Qa6
{[%clk 0:02:43.1]} 17. Kf1 {[%clk 0:01:59.2]} 17... Rb3 {[%clk 0:02:13.1]} 18.
Qxa6 {[%clk 0:01:48.3]} 18... Nxa6 {[%clk 0:02:07.8]} 19. Ra3 {[%clk 0:01:23.5]}
19... Rab8 {[%clk 0:02:00]} 20. Rxb3 {[%clk 0:01:23.8]} 20... Rxb3 {[%clk
0:02:00.9]} 21. Ke2 {[%clk 0:01:20.1]} 21... Nd7 {[%clk 0:01:48.4]} 22. Kd3
{[%clk 0:01:07.9]} 22... Kh7 {[%clk 0:01:14.2]} 23. h4 {[%clk 0:00:57.5]} 23...
f5 {[%clk 0:01:10.7]} 24. exf5 {[%clk 0:00:46.2]} 24... gxf5 {[%clk 0:01:11.6]}
25. Kc2 {[%clk 0:00:32.9]} 25... Rb8 {[%clk 0:01:01.8]} 26. Re1 {[%clk
0:00:30.3]} 26... Nb4+ {[%clk 0:00:59.2]} 27. Kd1 {[%clk 0:00:30.7]} 27... Bf6
{[%clk 0:00:57.6]} 28. b3 {[%clk 0:00:24.1]} 28... Nd3 {[%clk 0:00:47.9]} 29.
Re2 {[%clk 0:00:24.4]} 29... Rxb3 {[%clk 0:00:47.6]} 30. Kc2 {[%clk 0:00:21.6]}
30... c4 {[%clk 0:00:47.9]} 31. Nd4 {[%clk 0:00:19.1]} 31... Rb2+ {[%clk
0:00:32.9]} 32. Kd1 {[%clk 0:00:19.3]} 32... Bxd4 {[%clk 0:00:27.8]} 33. Rxe7+
{[%clk 0:00:19.2]} 33... Kg8 {[%clk 0:00:28]} 34. Rxd7 {[%clk 0:00:19.1]} 34...
Nxf2+ {[%clk 0:00:27.9]} 35. Kc1 {[%clk 0:00:19.6]} 35... Nd3+ {[%clk 0:00:26]}
36. Kd1 {[%clk 0:00:20.1]} 36... Nf2+ {[%clk 0:00:17.7]} 37. Kc1 {[%clk
0:00:20.5]} 37... Nd3+ {[%clk 0:00:18]} 38. Kd1 {[%clk 0:00:21.1]} 38... Nf2+
{[%clk 0:00:18.4]} 1/2-1/2

[Event "*** Titled Tuesday Blitz"]
[Site "Chess.com"]
[Date "2021.02.02"]
[Round "3"]
[White "salomez"]
[Black "zacachess"]
[Result "0-1"]
[WhiteElo "2213"]
[BlackElo "2415"]
[TimeControl "180+1"]
[EndTime "10:31:04 PST"]
[Termination "zacachess won on time"]

1. e4 {[%clk 0:03:00.9]} 1... c5 {[%clk 0:02:59.4]} 2. Nf3 {[%clk 0:03:00.8]}
2... d6 {[%clk 0:02:59.9]} 3. d4 {[%clk 0:03:01.1]} 3... cxd4 {[%clk 0:03:00.8]}
4. Nxd4 {[%clk 0:03:02]} 4... Nf6 {[%clk 0:03:00.9]} 5. Nc3 {[%clk 0:03:02.9]}
5... a6 {[%clk 0:03:01.2]} 6. Bc4 {[%clk 0:03:02.5]} 6... e6 {[%clk 0:03:00.9]}
7. Bb3 {[%clk 0:03:02.4]} 7... Nbd7 {[%clk 0:03:00.8]} 8. f4 {[%clk 0:02:49.8]}
8... Nc5 {[%clk 0:03:00.5]} 9. e5 {[%clk 0:02:49.1]} 9... Nfd7 {[%clk
0:03:00.6]} 10. exd6 {[%clk 0:02:37.9]} 10... Nf6 {[%clk 0:03:00.6]} 11. Be3
{[%clk 0:02:31.6]} 11... Bxd6 {[%clk 0:02:58.5]} 12. Qe2 {[%clk 0:02:31.7]}
12... Qc7 {[%clk 0:02:24.4]} 13. O-O {[%clk 0:02:00.8]} 13... O-O {[%clk
0:02:21.2]} 14. Rad1 {[%clk 0:01:57.8]} 14... Bd7 {[%clk 0:02:09.4]} 15. Bc1
{[%clk 0:01:36.4]} 15... Rad8 {[%clk 0:02:05.6]} 16. Kh1 {[%clk 0:01:33]} 16...
b5 {[%clk 0:01:55.5]} 17. g3 {[%clk 0:00:29.6]} 17... Bc8 {[%clk 0:01:48.1]} 18.
h3 {[%clk 0:00:15.3]} 18... b4 {[%clk 0:01:38.3]} 19. Na4 {[%clk 0:00:12.9]}
19... Bb7+ {[%clk 0:01:35.3]} 20. Kh2 {[%clk 0:00:12.7]} 20... Nxb3 {[%clk
0:01:24.5]} 21. axb3 {[%clk 0:00:11.7]} 21... Rfe8 {[%clk 0:01:16]} 22. Nf3
{[%clk 0:00:11.6]} 22... Nd7 {[%clk 0:01:00.4]} 23. Rfe1 {[%clk 0:00:09.9]}
23... e5 {[%clk 0:00:44.7]} 24. fxe5 {[%clk 0:00:09.4]} 24... Nxe5 {[%clk
0:00:44.9]} 25. Nxe5 {[%clk 0:00:09]} 25... Rxe5 {[%clk 0:00:44.8]} 26. Qf2
{[%clk 0:00:05.6]} 26... Rxe1 {[%clk 0:00:33.7]} 27. Rxe1 {[%clk 0:00:06.5]}
27... h5 {[%clk 0:00:27.7]} 28. Bf4 {[%clk 0:00:05.9]} 28... Qc6 {[%clk
0:00:17]} 29. Bxd6 {[%clk 0:00:04.8]} 29... Rxd6 {[%clk 0:00:17.9]} 30. c4
{[%clk 0:00:01.3]} 30... Rf6 {[%clk 0:00:17.7]} 0-1